[Event "European Women-ch 2023"]
[Site "Petrovac"]
[Date "2023.03.18"]
[Round "1.14"]
[White "Kobak, Polina"]
[Black "Olde, Margareth"]
[Result "1-0"]
[ECO "D38"]
[WhiteElo "1815"]
[BlackElo "2234"]
[Annotator "TA"]
[PlyCount "129"]
[EventDate "2023.03.15"]
[EventType "swiss"]
[EventCountry "MNE"]
[SourceTitle "playchess.com"]
[Source "ChessBase"]
[SourceQuality "1"]
[TimeControl "40/5400+30:1800+30"]

{[%evp 12,129,18,16,41,40,37,29,57,47,48,42,56,61,93,-15,-10,-4,54,10,16,8,90,84,100,98,112,116,145,144,157,146,235,80,76,81,240,216,255,273,281,223,233,263,306,259,426,423,400,362,445,400,521,473,532,400,559,365,562,562,556,514,562,557,515,510,538,541,499,386,861,856,982,989,979,972,971,956,956,956,913,920,872,818,1004,856,1418,1396,1131,877,1045,1035,978,927,914,902,29963,29973,29973,29973,29977,29978,29979,29980,29980,29981,29980,29981,29982,29981,29981,29982,29983,29984,29984,29984,29985,29983,29983,29981]} 1. d4 {[%emt 0:00:02]} Nf6 {[%emt 0:00:13]} 2. c4 {[%emt 0:00:09]} e6 {[%emt 0:00:13]} 3. Nf3 {[%emt 0:00:16]} d5 {[%emt 0:01:08]} 4. Nc3 {[%emt 0:02:44]} Bb4 {[%emt 0:01:35]} 5. Qa4+ {[%emt 0:00:12]} Nc6 {[%emt 0:00:15]} 6. e3 {[%emt 0:00:10]} O-O {[%emt 0:06:06]} 7. Bd2 {[%emt 0:00:36]} Bxc3 {[%emt 0:01:48] D38: Queen's Gambit Declined: Ragozin Defence (4 Nf3 Bb4).} 8. Bxc3 {[%emt 0:00:24]} Ne4 {[%emt 0:00:11]} 9. Qc2 {[%emt 0:02:23]} a5 {[%emt 0:07:41] White has an edge.} 10. a3 {[%emt 0:05:05]} f5 {[%emt 0:08:27]} 11. Bd3 {[%emt 0:01:53]} Bd7 {[%emt 0:03:35]} 12. O-O {[%emt 0:04:08] [#]} Be8 $146 {[%emt 0:03:37]} ({Predecessor:} 12... g5 13. Nd2 Ne7 14. f3 Nxc3 15. bxc3 Qe8 16. e4 Qh5 17. cxd5 exd5 18. c4 dxe4 19. fxe4 {½-½ Spalir,J (2373)-Castejon Caballero,A (2060) EU-ch Rapid Katowice 2021 (6)}) 13. Ne5 {[%emt 0:24:15]} (13. cxd5 $16 exd5 14. b4) 13... Nxe5 $11 {[%emt 0:04:40]} 14. dxe5 {[%emt 0:00:06]} Bc6 {[%emt 0:12:22]} (14... Nc5 $11) 15. b4 {[%emt 0:16:16][%cal Bb2b4,Bb4b5][%mdl 32]} (15. Bd4 $5 {[%cal Rf2f3]}) 15... Nxc3 {[%emt 0:09:19]} 16. Qxc3 {[%emt 0:00:08]} f4 {[%emt 0:04:05]} (16... axb4 $11 {remains equal.} 17. axb4 Qg5) 17. b5 {[%emt 0:05:19]} (17. bxa5 fxe3 18. fxe3 Qg5 $15) 17... Bd7 {[%emt 0:05:53]} 18. exf4 {[%emt 0:03:26] White is more active.} Rxf4 {[%emt 0:00:28]} 19. Qc2 {[%emt 0:07:50]} dxc4 {[%emt 0:05:01]} 20. Bxh7+ {[%emt 0:00:55]} Kh8 {[%emt 0:00:53]} 21. Rad1 {[%emt 0:02:44][%cal Ba1d1,Bd1d7,Bd7e7][%mdl 32]} Rh4 {[%emt 0:08:06]} (21... Qh4 $16) 22. Qd2 $2 {[%emt 0:07:50]} (22. Be4 $18 Qe8 23. a4 (23. Bxb7 Rb8 $18)) 22... Kxh7 $16 {[%emt 0:04:32]} 23. Qxd7 {[%emt 0:00:05]} Qc8 {[%emt 0:09:37] A mistake that costs the game.} (23... Qxd7 $16 {keeps fighting.} 24. Rxd7 Re4) 24. f4 {[%emt 0:01:21]} Rh6 {[%emt 0:01:17]} 25. Qe7 {[%emt 0:02:53]} ({Don't do} 25. Qd4 c6 $18) 25... Qe8 {[%emt 0:00:42]} 26. Rd7 {[%emt 0:01:34][%csl Gd7][%cal Re7g7]} (26. Qxc7 Qxb5 27. Rf3 Rf8 $16) 26... Qxe7 {[%emt 0:01:03]} 27. Rxe7 $18 {[%emt 0:00:05][%mdl 4096] Endgame KRR-KRR} c6 {[%emt 0:00:22] [#]} 28. b6 {[%emt 0:02:25]} (28. Rxb7 cxb5 29. Rxb5 Rc8 $16) 28... Kg6 $2 {[%emt 0:00:49]} (28... Rb8 {was called for.} 29. Rc1 Kg6 30. Rxc4 Rhh8) 29. Rxb7 {[%emt 0:02:17]} Rhh8 {[%emt 0:00:09]} 30. Rc7 {[%emt 0:02:47]} Kf5 {[%emt 0:00:27]} 31. Rc1 {[%emt 0:02:20]} (31. Rxg7 Rad8 32. b7 c3 33. Rf7+ Ke4 $18) (31. Rxc6 Rac8 32. g4+ Ke4 33. Rxe6 c3 $18) 31... Kxf4 {[%emt 0:00:33]} 32. Rxc4+ {[%emt 0:00:07]} Kxe5 {[%emt 0:00:28]} 33. R4xc6 {[%emt 0:00:28]} ({Weaker is} 33. R7xc6 Rhd8 34. Rc1 Rd6 35. R6c5+ Rd5 $18) 33... Rhb8 {[%emt 0:00:49]} 34. Re7 {[%emt 0:01:38] [#] Threatens to win with b7.} ({Not} 34. Rxg7 Kd5 35. Rgc7 Ra6 36. Rc5+ Ke4 $18) 34... Ra6 {[%emt 0:00:31]} (34... Kd5 $142) 35. Rexe6+ {[%emt 0:00:06]} Kd5 {[%emt 0:00:06]} 36. Kf2 {[%emt 0:01:01]} Rb7 {[%emt 0:00:11]} 37. a4 {[%emt 0:00:33]} Ra8 {[%emt 0:00:11]} 38. Rg6 {[%emt 0:00:59]} Rf8+ {[%emt 0:00:47]} 39. Kg3 {[%emt 0:00:05]} Rff7 {[%emt 0:00:25]} 40. Rc8 {[%emt 0:00:00] Strongly threatening Ra8.} Ke4 $2 {[%emt 0:00:00]} (40... Rf6) 41. Rc5 {[%emt 0:01:57]} Rbd7 {[%emt 0:03:41]} 42. Re6+ {[%emt 0:00:59]} Kd4 {[%emt 0:00:12]} 43. Rxa5 {[%emt 0:00:09]} Kc4 {[%emt 0:00:07]} 44. Rae5 {[%emt 0:05:25]} Rd2 {[%emt 0:01:18]} 45. Re2 {[%emt 0:00:48]} Rd3+ {[%emt 0:00:06]} 46. R2e3 {[%emt 0:00:40] Rxd3 would be deadly.} Rd2 {[%emt 0:00:31]} 47. Rf3 {[%emt 0:01:49]} Rfd7 {[%emt 0:00:25]} 48. Rc6+ {[%emt 0:02:05]} Kb4 {[%emt 0:00:37]} 49. Rc7 {[%emt 0:00:43] White threatens b7 and mate.} R7d6 {[%emt 0:01:45]} 50. Rxg7 {[%emt 0:00:45]} Rxb6 {[%emt 0:00:09]} 51. Rg4+ {[%emt 0:01:53]} Ka5 {[%emt 0:00:07]} 52. h4 {[%emt 0:00:13]} Ka6 {[%emt 0:00:49]} 53. h5 {[%emt 0:00:45]} Rbb2 {[%emt 0:00:11]} 54. Rf6+ {[%emt 0:00:13] White mates.} Ka5 {[%emt 0:00:13]} 55. Rf5+ {[%emt 0:00:04]} Kb6 {[%emt 0:00:04]} 56. Rg6+ {[%emt 0:00:06]} Kc7 {[%emt 0:00:03]} 57. Rf7+ {[%emt 0:00:05]} Rd7 {[%emt 0:00:05]} 58. Rxd7+ {[%emt 0:00:08]} Kxd7 {[%emt 0:00:03] KR-KR} 59. h6 {[%emt 0:00:30][%cal Bh5h6,Bh6h7][%mdl 32]} Rb1 {[%emt 0:00:04]} 60. Kf4 {[%emt 0:00:33]} Rb4+ {[%emt 0:00:11]} 61. Kf5 {[%emt 0:00:49]} Rxa4 {[%emt 0:00:34]} 62. Rg7+ {[%emt 0:00:11]} Kd6 {[%emt 0:00:14]} 63. g4 {[%emt 0:00:28]} Ra1 {[%emt 0:00:06]} 64. h7 {[%emt 0:00:20]} Rh1 {[%emt 0:00:05]} 65. Ke4 {[%emt 0:00:18] Weighted Error Value: White=0.32/Black=0.50} 1-0

[Event "European Women-ch 2023"]
[Site "Petrovac"]
[Date "2023.03.18"]
[Round "1.15"]
[White "Vega Gutierrez, Sabrina"]
[Black "Abdinova, Narmin"]
[Result "1-0"]
[ECO "B82"]
[WhiteElo "2361"]
[BlackElo "2090"]
[Annotator "TA"]
[PlyCount "52"]
[EventDate "2023.03.15"]
[EventType "swiss"]
[EventCountry "MNE"]
[SourceTitle "playchess.com"]
[Source "ChessBase"]
[SourceQuality "1"]
[TimeControl "40/5400+30:1800+30"]

{[%evp 13,52,10,30,17,29,12,39,-7,45,35,103,96,261,215,270,289,289,275,470,365,490,414,772,769,762,750,890,874,1459,1457,1406,1436,1419,1401,1281,1275,29986,29986,29991,29992,29993]} 1. e4 {[%emt 0:00:04]} c5 {[%emt 0:00:57]} 2. Nf3 {[%emt 0:00:08]} d6 {[%emt 0:00:12]} 3. d4 {[%emt 0:00:14]} cxd4 {[%emt 0:00:12]} 4. Nxd4 {[%emt 0:00:11]} Nf6 {[%emt 0:00:11]} 5. Nc3 {[%emt 0:00:08]} a6 {[%emt 0:00:07]} 6. Bd3 {[%emt 0:00:52]} e6 {[%emt 0:01:02]} 7. f4 {[%emt 0:07:19]} Be7 {[%emt 0:03:20]} 8. Qf3 {[%emt 0:12:31] B82: Sicilian Scheveningen: 6 f4.} Nbd7 {[%emt 0:01:58]} 9. g4 {[%emt 0:02:52] [#]} h6 $146 {[%emt 0:01:03][%cal Og7g5]} ({Predecessor:} 9... Nc5 10. g5 Nfd7 11. Bd2 b5 12. Nc6 Qc7 13. Nxe7 Kxe7 14. a3 Bb7 15. Qh3 Rac8 16. Rf1 {½-½ Nestorovic,K (1849)-Markovic,D (2013) Sarajevo Bosna op 46th 2016 (4)}) 10. Be3 {[%emt 0:00:51]} (10. Nb3 $14) 10... Nc5 {[%emt 0:20:31]} (10... g5 $11 11. Nde2 (11. fxg5 Ne5 $17) 11... gxf4 12. Bxf4 h5) 11. O-O-O $14 {[%emt 0:09:38]} Nfd7 {[%emt 0:02:24]} ({Black should play} 11... Qc7 $1 $14) 12. Be2 $16 {[%emt 0:04:55] White is more active.} O-O $2 {[%emt 0:31:01]} (12... Qc7 $16 {was necessary.}) 13. b4 {[%emt 0:17:33]} Qc7 {[%emt 0:00:47]} 14. bxc5 {[%emt 0:00:32]} dxc5 {[%emt 0:00:17] [#]} 15. Nf5 {[%emt 0:05:52][%mdl 64] Deflection} ({Weaker is} 15. Nb3 c4 $16) 15... Bf6 {[%emt 0:15:38]} (15... exf5 16. Nd5 (16. exf5 Nb6 $11) (16. gxf5 Nf6 $16) 16... fxg4 17. Nxe7+ (17. Nxc7 gxf3 18. Bxf3 Rb8 $14) 17... Kh8) 16. e5 $18 {[%emt 0:03:51]} Nxe5 {[%emt 0:02:05]} 17. fxe5 {[%emt 0:00:43]} Bxe5 {[%emt 0:00:03] [#]} (17... Qxe5 $142 18. Nxh6+ gxh6) 18. Nxh6+ $1 {[%emt 0:12:11]} gxh6 {[%emt 0:00:45]} 19. Bxh6 {[%emt 0:00:07] Threatens to win with Ne4.} Qa5 {[%emt 0:04:31]} 20. Nb1 {[%emt 0:02:19]} Re8 {[%emt 0:10:19]} 21. Rhf1 {[%emt 0:01:53]} Qc7 {[%emt 0:01:58]} 22. Bd3 {[%emt 0:00:49]} c4 {[%emt 0:00:30]} 23. Be4 {[%emt 0:01:16] Black must now prevent Qh3.} f6 {[%emt 0:01:31]} 24. Qh3 {[%emt 0:13:31][%cal Of1f6] White threatens Rxf6! and mate.} Qb6 {[%emt 0:00:37]} 25. c3 {[%emt 0:00:14]} Qc7 {[%emt 0:00:30]} 26. Qh5 {[%emt 0:00:16][%cal Rh5e8]} Qe7 {[%emt 0:00:32] White took control after the opening. Excellently played by Vega Gutierrez!   Weighted Error Value: White=0.13 (very precise) /Black=1.33} 1-0

[Event "European Women-ch 2023"]
[Site "Petrovac"]
[Date "2023.03.18"]
[Round "1.15"]
[White "Eric, Jovana"]
[Black "Silva, Ana Ines Teixeira Da"]
[Result "1-0"]
[ECO "C50"]
[WhiteElo "2230"]
[BlackElo "1792"]
[Annotator "TA"]
[PlyCount "105"]
[EventDate "2023.03.15"]
[EventType "swiss"]
[EventCountry "MNE"]
[SourceTitle "playchess.com"]
[Source "ChessBase"]
[SourceQuality "1"]
[TimeControl "40/5400+30:1800+30"]

{[%evp 18,105,16,0,0,0,0,0,0,0,7,-98,-94,-158,-152,-212,-216,-258,-162,-135,-161,-153,-32,-20,181,173,172,175,253,227,233,225,218,159,152,98,98,90,85,98,112,97,102,57,146,143,215,86,136,133,220,95,341,331,328,297,432,437,479,429,1413,677,716,809,808,467,806,805,783,790,776,768,761,733,725,723,677,704,734,735,749,733,29977,29978,29971,29972,29979,29980,29983,29984]} 1. e4 {[%emt 0:00:03]} e5 {[%emt 0:00:10]} 2. Nf3 {[%emt 0:00:13]} Nc6 {[%emt 0:00:16]} 3. Bc4 {[%emt 0:00:15]} Nf6 {[%emt 0:00:22]} 4. d3 {[%emt 0:00:16]} Bc5 {[%emt 0:00:39]} 5. Nc3 {[%emt 0:00:27]} a6 {[%emt 0:00:47]} 6. Bg5 {[%emt 0:00:52]} h6 {[%emt 0:00:47]} 7. Bxf6 {[%emt 0:00:29]} Qxf6 {[%emt 0:00:27]} 8. Nd5 {[%emt 0:00:27]} Qd8 {[%emt 0:00:33]} 9. c3 {[%emt 0:00:46]} d6 {[%emt 0:01:52]} 10. d4 {[%emt 0:01:32]} Ba7 {[%emt 0:02:34] 10...Ba7 is better than 10...exd4. C50: Hungarian Defence and Giuoco Pianissimo.} 11. h3 {[%emt 0:02:06]} O-O {[%emt 0:10:34]} 12. O-O {[%emt 0:02:02]} Re8 {[%emt 0:04:30] The position is equal.} 13. Re1 {[%emt 0:03:24]} Be6 {[%emt 0:08:10] [#]} 14. Bf1 $146 {[%emt 0:11:20]} (14. Bb3 $11) ({Predecessor:} 14. a3 Na5 15. Ba2 c6 16. Ne3 Bxa2 17. Rxa2 b5 18. b4 Nb7 19. dxe5 dxe5 20. Rd2 Bxe3 21. Rxd8 Raxd8 {1-0 Hjartarson,J (2519)-Vasquez Schroder,R (2459) Titled Tuesday intern op 03rd Aug blitz 2021 (3)}) 14... exd4 $17 {[%emt 0:09:40]} 15. c4 {[%emt 0:00:19]} (15. Qb3 $142) 15... Ne5 {[%emt 0:06:47]} 16. Nxd4 {[%emt 0:15:32] [#]} (16. a4 $17) 16... Bxh3 $1 $19 {[%emt 0:08:36][%mdl 512]} 17. Ne3 {[%emt 0:09:10]} (17. Rc1 c6) 17... Bxd4 {[%emt 0:07:46]} 18. Qxd4 {[%emt 0:00:05]} Qg5 {[%emt 0:04:29]} 19. Qd1 {[%emt 0:02:36] Prevents Nf3+.} Re6 {[%emt 0:07:29]} (19... c6 $17 {aiming for ...Re6.} 20. Rc1 Rad8) 20. Nd5 $1 $15 {[%emt 0:09:36]} Rg6 $2 {[%emt 0:04:01]} (20... Bg4 $11 {and Black stays safe.} 21. f4 Qd8) 21. f4 $18 {[%emt 0:02:34][%mdl 64] Deflection, Double Attack} (21. Nxc7 Bxg2) 21... Qh4 {[%emt 0:06:39] Hoping for ...Bg4.} 22. fxe5 {[%emt 0:01:07]} dxe5 {[%emt 0:02:38]} (22... c6 $142) 23. Re3 {[%emt 0:04:02] Black must now prevent Qe1.} Bg4 {[%emt 0:02:40]} 24. Qe1 {[%emt 0:00:32]} Qd8 {[%emt 0:02:26]} 25. Be2 {[%emt 0:05:36]} c6 {[%emt 0:00:41]} 26. Bxg4 {[%emt 0:01:11]} (26. Nb4 $142) 26... Rxg4 $16 {[%emt 0:00:32]} 27. Nc3 {[%emt 0:00:51]} Qg5 {[%emt 0:01:54]} 28. Re2 {[%emt 0:00:38]} Rd8 {[%emt 0:01:28]} 29. Rd1 {[%emt 0:02:26] Against Rd3} Rd4 {[%emt 0:00:11]} 30. b3 {[%emt 0:09:27]} h5 {[%emt 0:00:43] [#]} (30... Rh4 $14 31. Re3 b5) 31. Qf2 $1 {[%emt 0:03:10]} c5 {[%emt 0:01:29]} (31... h4 $16 {was necessary.}) 32. Rxd4 {[%emt 0:01:51]} (32. Rf1 $6 Rf4 33. Qe3 Qg4) (32. Qf5 $18 {and White stays clearly on top.}) 32... exd4 {[%emt 0:00:26]} ({Better is} 32... cxd4 33. Nd5 f6) 33. Nd5 {[%emt 0:00:07][%cal Bc3d5,Bd5e7,Be7f5,Bf5d6][%mdl 32]} d3 {[%emt 0:01:43]} (33... b5 $16 {keeps fighting.}) 34. Re1 {[%emt 0:01:03]} (34. Rd2 $18 {is more deadly.}) 34... Rg3 $2 {[%emt 0:01:10] [#]} (34... h4 $16 {is a better defense.}) 35. Ne7+ $1 $18 {[%emt 0:02:50][%mdl 576] Deflection} Kh8 {[%emt 0:01:08]} 36. Nf5 {[%emt 0:00:28]} (36. Qxf7 Rxg2+ 37. Kh1 Rg1+ 38. Rxg1 Qh4+ 39. Kg2 Qg4+ 40. Kh2 Qh4+ 41. Kg2 Qg4+ 42. Kh2 Qh4+ 43. Kg2 $11) 36... Rg4 {[%emt 0:00:44]} (36... d2 $142 37. Nxg3 {[%mdl 64] Discovered Attack} (37. Qxg3 $2 Qxg3 38. Rf1 Qe1 $19) 37... dxe1=N) 37. Nd6 {[%emt 0:00:28]} (37. Qxc5 $2 Rxg2+ 38. Kh1 d2 $19) 37... Qe7 {[%emt 0:01:17]} 38. e5 {[%emt 0:05:41]} (38. Qxf7 Qg5 39. Qf2 (39. Nxb7 $2 Rxg2+ 40. Kh1 Re2 $19) 39... Kg8 $18) (38. Nxf7+ Kg8 $16) 38... h4 {[%emt 0:00:36]} (38... Kg8 $142 39. Qxc5 d2) 39. Qf3 {[%emt 0:02:04]} (39. Qf5 $142 Kg8 40. Qc8+ Qf8 41. Qxg4) 39... d2 {[%emt 0:00:16]} 40. Rd1 {[%emt 0:00:00]} (40. Nxf7+ $2 Qxf7 41. Qxf7 dxe1=Q+ $19) 40... Rg3 {[%emt 0:00:00]} 41. Qh5+ {[%emt 0:02:46]} ({Less strong is} 41. Nxf7+ Kg8 42. Qd5 Qxf7 43. Rxd2 (43. Qxc5 Rd3 $15) 43... Rg6 $16) 41... Kg8 {[%emt 0:00:29]} 42. Nf5 {[%emt 0:01:14]} Qd8 {[%emt 0:05:28]} 43. Nxg3 {[%emt 0:01:08]} hxg3 {[%emt 0:00:22]} 44. Qf3 {[%emt 0:05:15]} (44. Rf1 {is a self mate.} Qd4+ 45. Kh1 g6 46. Qg5 d1=Q 47. Qxg3 Qxf1+ 48. Kh2 Qdg1+ 49. Kh3 Qh1+ 50. Qh2 Qfxg2+ 51. Kh4 Qhxh2#) 44... Qd4+ {[%emt 0:02:40]} 45. Kf1 {[%emt 0:00:00]} b5 {[%emt 0:00:46]} 46. cxb5 {[%emt 0:00:00]} axb5 {[%emt 0:00:10]} 47. Ke2 {[%emt 0:01:29]} c4 {[%emt 0:05:23]} 48. Rxd2 {[%emt 0:02:33]} Qxe5+ {[%emt 0:00:07]} 49. Kf1 {[%emt 0:00:05]} c3 {[%emt 0:01:12]} 50. Rd8+ {[%emt 0:00:36] White mates.} Kh7 {[%emt 0:00:10]} 51. Rd5 {[%emt 0:00:48]} ({Inferior is} 51. Qxf7 c2 52. Qg8+ Kg6 $11) 51... Qe8 {[%emt 0:05:44]} 52. Qxc3 {[%emt 0:00:12]} Qe6 {[%emt 0:02:56]} 53. Qd3+ {[%emt 0:00:07] Weighted Error Value: White=0.40/Black=0.60} 1-0

[Event "European Women-ch 2023"]
[Site "Petrovac"]
[Date "2023.03.18"]
[Round "1.16"]
[White "Hapala, Elisabeth"]
[Black "Mammadova, Gulnar"]
[Result "0-1"]
[ECO "C07"]
[WhiteElo "2072"]
[BlackElo "2358"]
[Annotator "TA"]
[PlyCount "84"]
[EventDate "2023.03.15"]
[EventType "swiss"]
[EventCountry "MNE"]
[SourceTitle "playchess.com"]
[Source "ChessBase"]
[SourceQuality "1"]
[TimeControl "40/5400+30:1800+30"]

{[%evp 10,84,18,21,25,13,24,18,24,18,22,5,18,3,0,0,3,0,10,6,12,13,35,37,35,36,39,29,80,52,61,50,47,21,52,50,43,49,63,68,87,66,84,0,0,0,0,0,-3,-8,-12,-59,-48,-383,-383,-379,-375,-363,-358,-527,-522,-522,-514,-570,-561,-627,-505,-697,-618,-683,-660,-29966,-29967,-6135,-5708,-1920,-1449]} 1. e4 {[%emt 0:00:03]} e6 {[%emt 0:00:07]} 2. d4 {[%emt 0:00:03]} d5 {[%emt 0:00:03]} 3. Nd2 {[%emt 0:00:09]} c5 {[%emt 0:00:07]} 4. exd5 {[%emt 0:00:05]} Qxd5 {[%emt 0:00:06]} 5. Ngf3 {[%emt 0:00:24]} cxd4 {[%emt 0:00:08]} 6. Bc4 {[%emt 0:00:07]} Qd7 {[%emt 0:00:09] C07: French Tarrasch: 3...c5, 4 Ngf3 and 4 exd5 Qxd5.} 7. O-O {[%emt 0:00:34]} Nc6 {[%emt 0:00:17]} 8. Nb3 {[%emt 0:06:31][%cal Rb3d4]} a6 {[%emt 0:00:17] The position is equal.} 9. Nbxd4 {[%emt 0:00:42]} Nxd4 {[%emt 0:00:05]} 10. Nxd4 {[%emt 0:00:04]} Bc5 {[%emt 0:00:04]} 11. Be3 {[%emt 0:10:49][%cal Od4e6] [#] aiming for Nxe6!} Nf6 {[%emt 0:03:47]} 12. c3 {[%emt 0:33:59]} O-O {[%emt 0:03:25]} 13. Qf3 {[%emt 0:06:59][%cal Od4e6] Nxe6! would be deadly.} Qc7 {[%emt 0:04:25] And now ...Bxd4 would win.} 14. Bb3 {[%emt 0:08:01]} e5 {[%emt 0:03:27] [#]} 15. Nf5 $146 {[%emt 0:04:46]} ({Predecessor:} 15. Nc2 Bg4 16. Qg3 Bf5 17. Bxc5 Qxc5 18. Ne3 Bg6 19. Rfd1 Rad8 20. Qh4 h6 21. h3 {½-½ Popovic,D (2438)-Volkov,S (2620) EU-ch Internet qual blitz 2003 (9)}) 15... e4 {[%emt 0:04:58]} (15... Bxf5 {simplifies} 16. Bxc5 Qxc5 17. Qxf5 a5) 16. Qg3 {[%emt 0:00:32]} Qxg3 {[%emt 0:00:10]} 17. Nxg3 {[%emt 0:00:03]} Bxe3 {[%emt 0:02:18]} 18. fxe3 {[%emt 0:00:01]} Bd7 {[%emt 0:02:19]} (18... a5 $11 {keeps the balance.}) 19. Rad1 {[%emt 0:01:51][%cal Of1f6] [#] Black must now prevent Rxf6!} Bb5 {[%emt 0:03:19]} 20. c4 {[%emt 0:03:44]} Bc6 {[%emt 0:00:06]} 21. Nf5 {[%emt 0:05:09]} Rfe8 {[%emt 0:06:53] Against Ne7+} 22. Rd4 {[%emt 0:03:39]} Re5 {[%emt 0:04:37]} 23. Nd6 {[%emt 0:05:35]} Rf8 {[%emt 0:05:05]} 24. h3 {[%emt 0:01:16]} h6 {[%emt 0:04:32]} 25. Rf4 {[%emt 0:02:16]} Ne8 {[%emt 0:07:42]} 26. Nxe4 {[%emt 0:04:38]} (26. c5 $16 {[%cal Rd6f7]} Nf6 27. Rf5) 26... g5 $11 {[%emt 0:05:37]} 27. Nf6+ $1 {[%emt 0:00:04]} Nxf6 {[%emt 0:01:59]} 28. Rxf6 {[%emt 0:00:02]} Kg7 $36 {[%emt 0:00:06][%mdl 2048] Black is more active.} 29. Rdd6 {[%emt 0:01:48]} Rxe3 {[%emt 0:00:21]} 30. c5 {[%emt 0:00:23]} (30. Rxh6 $2 {perishes.} f6 31. Rh5 Re2 32. Rxc6 bxc6 $19) (30. Bc2 $11 {was preferrable.}) 30... Re5 $15 {[%emt 0:04:40]} 31. Rxh6 $2 {[%emt 0:01:08][%mdl 8192] Now White is beyond hope.} (31. h4 $15) 31... f6 $19 {[%emt 0:02:34]} 32. Rh5 {[%emt 0:00:30]} Be8 {[%emt 0:00:11]} (32... Rxc5 $2 {is the wrong capture.} 33. Kh2 $19) 33. g4 {[%emt 0:00:20]} Rxc5 {[%emt 0:00:59]} ({Wrong is} 33... Bxh5 $2 34. gxh5 Rxc5 35. Rd7+ Kh6 36. Bd1 $19) 34. h4 {[%emt 0:00:38]} (34. Rd2 $142) 34... Bxh5 {[%emt 0:00:58]} 35. gxh5 {[%emt 0:00:02]} gxh4 {[%emt 0:00:21][%mdl 4096] Endgame KRR-KRB} 36. Rd7+ {[%emt 0:00:31]} Kh6 {[%emt 0:00:04]} 37. Rxb7 {[%emt 0:00:41]} Rxh5 {[%emt 0:01:19] ...Rd8 is the strong threat.} 38. Ra7 {[%emt 0:00:42]} a5 {[%emt 0:00:29]} 39. Kh2 {[%emt 0:00:37]} Rd8 {[%emt 0:00:33] Inhibits Rd7.} 40. Kh3 {[%emt 0:00:00]} Rd3+ {[%emt 0:00:00]} 41. Kg4 {[%emt 0:01:58]} Rd4+ {[%emt 0:01:01]} 42. Kh3 {[%emt 0:02:08]} Re5 {[%emt 0:00:08] Weighted Error Value: White=0.53/Black=0.12 (very precise)} 0-1

[Event "European Women-ch 2023"]
[Site "Petrovac"]
[Date "2023.03.18"]
[Round "1.16"]
[White "Zhezhovska, Monika"]
[Black "Mamedjarova, Turkan"]
[Result "0-1"]
[ECO "D36"]
[WhiteElo "1761"]
[BlackElo "2229"]
[Annotator "TA"]
[PlyCount "42"]
[EventDate "2023.03.15"]
[EventType "swiss"]
[EventCountry "MNE"]
[SourceTitle "playchess.com"]
[Source "ChessBase"]
[SourceQuality "1"]
[TimeControl "40/5400+30:1800+30"]

{[%evp 26,42,15,18,32,19,23,21,55,60,60,38,48,36,52,0,0,-29997,-29998]} 1. d4 {[%emt 0:00:04]} d5 {[%emt 0:00:06]} 2. c4 {[%emt 0:00:09]} e6 {[%emt 0:00:13]} 3. Nc3 {[%emt 0:00:13]} Nf6 {[%emt 0:00:23]} 4. Bg5 {[%emt 0:00:20]} Be7 {[%emt 0:00:36]} 5. e3 {[%emt 0:00:31]} O-O {[%emt 0:00:40]} 6. Nf3 {[%emt 0:00:30]} Nbd7 {[%emt 0:01:20]} 7. Qc2 {[%emt 0:00:49]} c6 {[%emt 0:00:22]} 8. cxd5 {[%emt 0:01:44]} exd5 {[%emt 0:00:35]} 9. Bd3 {[%emt 0:00:27]} Re8 {[%emt 0:02:49]} 10. O-O {[%emt 0:01:32]} Nf8 {[%emt 0:01:03]} 11. Ne5 {[%emt 0:02:52]} Ng4 {[%emt 0:01:39]} 12. Bxe7 {[%emt 0:06:42]} Qxe7 {[%emt 0:00:45]} 13. Nxg4 {[%emt 0:00:37]} Bxg4 {[%emt 0:00:02]} 14. Rae1 {[%emt 0:00:13]} Qg5 {[%emt 0:03:13] D36: Queen's Gambit Declined: Exchange Variation: Main line (5 Bg5 c6 6 Qc2).} 15. f3 {[%emt 0:03:06]} Bd7 {[%emt 0:01:48]} 16. Qf2 {[%emt 0:00:52] [#]} f5 $146 {[%emt 0:06:10] The position is equal.} ({Predecessor:} 16... Qf6 17. g4 Ng6 18. Qg3 Rac8 19. g5 Qd8 20. f4 f5 21. Qh3 Rf8 22. Qh5 {1-0 Suto,G (2150)-Vasvari,B (1850) HUN-chT3 Hungary 1997}) 17. e4 {[%emt 0:12:21]} f4 {[%emt 0:00:54]} 18. b3 {[%emt 0:01:33]} Kh8 {[%emt 0:04:32]} 19. Kh1 {[%emt 0:03:31]} Re6 {[%emt 0:02:25]} 20. Rg1 {[%emt 0:04:39]} (20. Re2 $14) 20... Qh5 $11 {[%emt 0:06:47][%cal Oh5h2] ( -> ...Qxh2+!)} 21. e5 $2 {[%emt 0:04:33][%mdl 8192] [#]} (21. g3 $11) 21... Qxh2+ $3 {[%emt 0:01:14][%mdl 576] Decoy. An entertaining game by Mamedjarova.   Weighted Error Value: White=0.89/Black=0.11 (very precise)} 0-1